[Event "Titled Tuesday Blitz June 21 Early 2022"]
[White "Sarana, Alexey"]
[Black "Barp, Alberto"]
[WhiteFideId "24133795"]
[BlackFideId "872555"]
[WhiteElo "2666"]
[BlackElo "2229"]
[Result "1-0"]
[Round "08"]
[TimeControl "180+1"]
[Date "2022.06.21"]
[WhiteClock "0:01:56"]
[BlackClock "0:01:59"]

1. d4 {[%clk 0:03:00]}  Nf6 {[%clk 0:02:58]} 2. c4 {[%clk 0:03:01]}  e6 {[%clk 0:02:57]} 3. Nc3 {[%clk 0:02:59]}  Bb4 {[%clk 0:02:55]} 4. e3 {[%clk 0:02:59]}  d5 {[%clk 0:02:54]} 5. Bd3 {[%clk 0:02:58]}  O-O {[%clk 0:02:50]} 6. a3 {[%clk 0:02:58]}  Bxc3+ {[%clk 0:02:50]} 7. bxc3 {[%clk 0:02:59]}  c6 {[%clk 0:02:46]} 8. Ne2 {[%clk 0:02:56]}  b6 {[%clk 0:02:46]} 9. cxd5 {[%clk 0:02:55]}  exd5 {[%clk 0:02:46]} 10. f3 {[%clk 0:02:55]}  Re8 {[%clk 0:02:40]} 11. O-O {[%clk 0:02:55]}  Ba6 {[%clk 0:02:40]} 12. Ng3 {[%clk 0:02:55]}  Bxd3 {[%clk 0:02:40]} 13. Qxd3 {[%clk 0:02:56]}  Nbd7 {[%clk 0:02:29]} 14. Bb2 {[%clk 0:02:51]}  Re6 {[%clk 0:02:24]} 15. Rae1 {[%clk 0:02:51]}  b5 {[%clk 0:02:21]} 16. e4 {[%clk 0:02:49]}  dxe4 {[%clk 0:02:20]} 17. fxe4 {[%clk 0:02:50]}  Nb6 {[%clk 0:02:16]} 18. Nf5 {[%clk 0:02:47]}  Nc4 {[%clk 0:02:15]} 19. Bc1 {[%clk 0:02:47]}  Ne8 {[%clk 0:02:10]} 20. Qf3 {[%clk 0:02:43]}  Qd7 {[%clk 0:02:09]} 21. e5 {[%clk 0:02:41]}  f6 {[%clk 0:02:04]} 22. Re4 {[%clk 0:01:57]}  fxe5 {[%clk 0:01:59]} 23. Nh6+ {[%clk 0:01:56]} 1-0


[Site "https://www.chess.com"]

[Event "Titled Tuesday Blitz June 21 Early 2022"]
[White "Simonovic, Miroslav"]
[Black "Martin, Lewis"]
[WhiteFideId "919152"]
[BlackFideId "410551"]
[WhiteElo "2043"]
[BlackElo "2145"]
[Result "0-1"]
[Round "08"]
[TimeControl "180+1"]
[Date "2022.06.21"]
[WhiteClock "0:00:03"]
[BlackClock "0:00:22"]

1. d4 {[%clk 0:03:00]}  d5 {[%clk 0:02:59]} 2. Bg5 {[%clk 0:03:01]}  f6 {[%clk 0:02:57]} 3. Bh4 {[%clk 0:03:01]}  Nc6 {[%clk 0:02:46]} 4. e3 {[%clk 0:02:56]}  Nh6 {[%clk 0:02:42]} 5. f4 {[%clk 0:02:55]}  Nf5 {[%clk 0:02:40]} 6. Bf2 {[%clk 0:02:55]}  e5 {[%clk 0:02:39]} 7. g4 {[%clk 0:02:51]}  Nd6 {[%clk 0:02:32]} 8. dxe5 {[%clk 0:02:47]}  fxe5 {[%clk 0:02:30]} 9. Qxd5 {[%clk 0:02:47]}  exf4 {[%clk 0:02:25]} 10. exf4 {[%clk 0:02:39]}  Bxg4 {[%clk 0:02:22]} 11. Be2 {[%clk 0:02:17]}  Qe7 {[%clk 0:02:16]} 12. Nc3 {[%clk 0:02:09]}  O-O-O {[%clk 0:02:13]} 13. O-O-O {[%clk 0:02:01]}  Be6 {[%clk 0:02:08]} 14. Qf3 {[%clk 0:01:51]}  g6 {[%clk 0:02:04]} 15. Bd3 {[%clk 0:01:25]}  Bg7 {[%clk 0:02:02]} 16. Nge2 {[%clk 0:01:25]}  Qf7 {[%clk 0:01:48]} 17. Kb1 {[%clk 0:01:24]}  Nb4 {[%clk 0:01:43]} 18. a3 {[%clk 0:01:22]}  Nxd3 {[%clk 0:01:40]} 19. Rxd3 {[%clk 0:01:23]}  Bf5 {[%clk 0:01:33]} 20. Rdd1 {[%clk 0:01:02]}  Qb3 {[%clk 0:01:30]} 21. Nd4 {[%clk 0:00:43]}  Bxd4 {[%clk 0:01:27]} 22. Rxd4 {[%clk 0:00:42]}  Nc4 {[%clk 0:01:19]} 23. Rxc4 {[%clk 0:00:26]}  Qxc4 {[%clk 0:01:19]} 24. Bxa7 {[%clk 0:00:20]}  Rd2 {[%clk 0:01:15]} 25. Rc1 {[%clk 0:00:18]}  Rxh2 {[%clk 0:01:01]} 26. Bf2 {[%clk 0:00:18]}  Rh3 {[%clk 0:00:54]} 27. Qd5 {[%clk 0:00:14]}  Rxc3 {[%clk 0:00:48]} 28. Qxc4 {[%clk 0:00:12]}  Rxc4 {[%clk 0:00:48]} 29. Be3 {[%clk 0:00:12]}  Re8 {[%clk 0:00:44]} 30. Bd2 {[%clk 0:00:11]}  Re2 {[%clk 0:00:44]} 31. Bc3 {[%clk 0:00:12]}  Rxf4 {[%clk 0:00:43]} 32. Rh1 {[%clk 0:00:08]}  h5 {[%clk 0:00:42]} 33. Rg1 {[%clk 0:00:07]}  Rxc2 {[%clk 0:00:40]} 34. Ka1 {[%clk 0:00:07]}  Rff2 {[%clk 0:00:35]} 35. Re1 {[%clk 0:00:06]}  Rfe2 {[%clk 0:00:34]} 36. Rd1 {[%clk 0:00:06]}  b6 {[%clk 0:00:29]} 37. Bf6 {[%clk 0:00:06]}  Kb7 {[%clk 0:00:29]} 38. Bc3 {[%clk 0:00:06]}  h4 {[%clk 0:00:28]} 39. Rh1 {[%clk 0:00:05]}  h3 {[%clk 0:00:28]} 40. Rg1 {[%clk 0:00:05]}  h2 {[%clk 0:00:27]} 41. Rh1 {[%clk 0:00:06]}  Be4 {[%clk 0:00:27]} 42. Rxh2 {[%clk 0:00:06]}  Rxh2 {[%clk 0:00:27]} 43. Ka2 {[%clk 0:00:05]}  Rxc3 {[%clk 0:00:26]} 44. a4 {[%clk 0:00:05]}  Rg3 {[%clk 0:00:22]} 45. a5 {[%clk 0:00:03]}  bxa5 {[%clk 0:00:22]} 0-1


[Site "https://www.chess.com"]

[Event "Titled Tuesday Blitz June 21 Early 2022"]
[White "Slugin, Sergey"]
[Black "Ovchinnikov, Vsevolod"]
[WhiteFideId "4122569"]
[BlackFideId "24176842"]
[WhiteElo "2358"]
[BlackElo "2376"]
[Result "1-0"]
[Round "08"]
[TimeControl "180+1"]
[Date "2022.06.21"]
[WhiteClock "0:00:53"]
[BlackClock "0:00:07"]

1. c4 {[%clk 0:03:00]}  Nf6 {[%clk 0:02:59]} 2. Nc3 {[%clk 0:03:01]}  d5 {[%clk 0:02:59]} 3. cxd5 {[%clk 0:02:59]}  Nxd5 {[%clk 0:03:00]} 4. Nf3 {[%clk 0:03:00]}  g6 {[%clk 0:02:58]} 5. h4 {[%clk 0:02:59]}  h6 {[%clk 0:02:53]} 6. Qb3 {[%clk 0:02:53]}  Nb6 {[%clk 0:02:49]} 7. g3 {[%clk 0:02:52]}  Be6 {[%clk 0:02:48]} 8. Qd1 {[%clk 0:02:49]}  Bg7 {[%clk 0:02:47]} 9. Bg2 {[%clk 0:02:49]}  Nc6 {[%clk 0:02:48]} 10. d3 {[%clk 0:02:49]}  Qd7 {[%clk 0:02:31]} 11. Be3 {[%clk 0:02:46]}  Nd5 {[%clk 0:02:29]} 12. Bd2 {[%clk 0:02:47]}  Rd8 {[%clk 0:02:25]} 13. Rc1 {[%clk 0:02:43]}  Nd4 {[%clk 0:02:14]} 14. Nxd4 {[%clk 0:02:39]}  Bxd4 {[%clk 0:02:15]} 15. O-O {[%clk 0:02:14]}  c6 {[%clk 0:01:52]} 16. Ne4 {[%clk 0:02:11]}  Bh3 {[%clk 0:01:38]} 17. Nc5 {[%clk 0:02:01]}  Qc8 {[%clk 0:01:14]} 18. e3 {[%clk 0:01:48]}  Bxg2 {[%clk 0:01:14]} 19. Kxg2 {[%clk 0:01:47]}  Bg7 {[%clk 0:00:55]} 20. e4 {[%clk 0:01:47]}  Nc7 {[%clk 0:00:44]} 21. Bc3 {[%clk 0:01:34]}  e5 {[%clk 0:00:42]} 22. b4 {[%clk 0:01:20]}  b6 {[%clk 0:00:39]} 23. Nb3 {[%clk 0:01:21]}  f5 {[%clk 0:00:23]} 24. Qf3 {[%clk 0:01:09]}  O-O {[%clk 0:00:10]} 25. h5 {[%clk 0:01:09]}  gxh5 {[%clk 0:00:07]} 26. Qxh5 {[%clk 0:01:07]}  Rxd3 {[%clk 0:00:06]} 27. Bxe5 {[%clk 0:00:50]}  Bxe5 {[%clk 0:00:06]} 28. Rxc6 {[%clk 0:00:50]}  Rd6 {[%clk 0:00:05]} 29. Rxd6 {[%clk 0:00:50]}  Bxd6 {[%clk 0:00:06]} 30. Qg6+ {[%clk 0:00:51]}  Kh8 {[%clk 0:00:06]} 31. Qxh6+ {[%clk 0:00:52]}  Kg8 {[%clk 0:00:07]} 32. Qg6+ {[%clk 0:00:53]}  Kh8 {[%clk 0:00:07]} 33. Rh1# {[%clk 0:00:53]} 1-0


[Site "https://www.chess.com"]

[Event "Titled Tuesday Blitz June 21 Early 2022"]
[White "Starozhilov, Leonid"]
[Black "Steinberg, Nitzan"]
[WhiteFideId "14106752"]
[BlackFideId "2801795"]
[WhiteElo "2414"]
[BlackElo "2471"]
[Result "1/2-1/2"]
[Round "08"]
[TimeControl "180+1"]
[Date "2022.06.21"]
[WhiteClock "0:01:41"]
[BlackClock "0:01:46"]

1. Nf3 {[%clk 0:02:55]}  d5 {[%clk 0:03:00]} 2. g3 {[%clk 0:02:52]}  g6 {[%clk 0:03:00]} 3. Bg2 {[%clk 0:02:51]}  Bg7 {[%clk 0:03:00]} 4. O-O {[%clk 0:02:51]}  e5 {[%clk 0:03:00]} 5. d3 {[%clk 0:02:46]}  Ne7 {[%clk 0:02:59]} 6. c4 {[%clk 0:02:46]}  O-O {[%clk 0:02:49]} 7. cxd5 {[%clk 0:02:44]}  Nxd5 {[%clk 0:02:50]} 8. Qc2 {[%clk 0:02:31]}  Nc6 {[%clk 0:02:49]} 9. Nc3 {[%clk 0:02:30]}  Nb6 {[%clk 0:02:38]} 10. Bg5 {[%clk 0:02:13]}  f6 {[%clk 0:02:36]} 11. Be3 {[%clk 0:02:13]}  Be6 {[%clk 0:02:29]} 12. a3 {[%clk 0:02:11]}  a5 {[%clk 0:02:21]} 13. Na4 {[%clk 0:02:04]}  Nxa4 {[%clk 0:02:10]} 14. Qxa4 {[%clk 0:02:02]}  Qd7 {[%clk 0:02:08]} 15. Rfc1 {[%clk 0:01:51]}  Bd5 {[%clk 0:02:08]} 16. Rc5 {[%clk 0:01:43]}  Be6 {[%clk 0:01:46]} 17. Rac1 {[%clk 0:01:41]} 1/2-1/2


[Site "https://www.chess.com"]

[Event "Titled Tuesday Blitz June 21 Early 2022"]
[White "Stribuk, Artiom"]
[Black "Harvey, Marcus R"]
[WhiteFideId "13515659"]
[BlackFideId "400092"]
[WhiteElo "2259"]
[BlackElo "2485"]
[Result "1-0"]
[Round "08"]
[TimeControl "180+1"]
[Date "2022.06.21"]
[WhiteClock "0:00:21"]
[BlackClock "0:00:01"]

1. d4 {[%clk 0:03:00]}  Nf6 {[%clk 0:03:00]} 2. c4 {[%clk 0:03:00]}  e6 {[%clk 0:03:00]} 3. g3 {[%clk 0:02:59]}  d5 {[%clk 0:03:00]} 4. Nf3 {[%clk 0:02:59]}  dxc4 {[%clk 0:03:00]} 5. Bg2 {[%clk 0:03:00]}  c5 {[%clk 0:03:01]} 6. O-O {[%clk 0:02:58]}  Nc6 {[%clk 0:03:01]} 7. Qa4 {[%clk 0:02:57]}  Bd7 {[%clk 0:03:00]} 8. Qxc4 {[%clk 0:02:58]}  b5 {[%clk 0:03:01]} 9. Qd3 {[%clk 0:02:54]}  c4 {[%clk 0:03:00]} 10. Qc2 {[%clk 0:02:55]}  Rc8 {[%clk 0:03:00]} 11. Nc3 {[%clk 0:02:51]}  Qb6 {[%clk 0:02:24]} 12. Rd1 {[%clk 0:02:50]}  Be7 {[%clk 0:02:19]} 13. a3 {[%clk 0:02:41]}  O-O {[%clk 0:01:55]} 14. e4 {[%clk 0:02:35]}  Na5 {[%clk 0:01:50]} 15. Be3 {[%clk 0:02:34]}  Nb3 {[%clk 0:01:49]} 16. Rab1 {[%clk 0:02:35]}  Rfd8 {[%clk 0:01:37]} 17. Ne5 {[%clk 0:02:30]}  Be8 {[%clk 0:01:37]} 18. Ne2 {[%clk 0:01:52]}  a5 {[%clk 0:01:29]} 19. h3 {[%clk 0:01:50]}  Qa6 {[%clk 0:01:28]} 20. Nc1 {[%clk 0:01:40]}  b4 {[%clk 0:01:16]} 21. Nxb3 {[%clk 0:01:31]}  cxb3 {[%clk 0:01:17]} 22. Qxb3 {[%clk 0:01:31]}  a4 {[%clk 0:01:01]} 23. Qd3 {[%clk 0:01:31]}  Bb5 {[%clk 0:01:01]} 24. Qd2 {[%clk 0:01:28]}  bxa3 {[%clk 0:00:58]} 25. bxa3 {[%clk 0:01:29]}  Bxa3 {[%clk 0:00:58]} 26. Qa2 {[%clk 0:01:17]}  Be7 {[%clk 0:00:46]} 27. d5 {[%clk 0:01:12]}  exd5 {[%clk 0:00:45]} 28. exd5 {[%clk 0:01:13]}  Bd6 {[%clk 0:00:42]} 29. Nc6 {[%clk 0:01:11]}  Re8 {[%clk 0:00:40]} 30. Bd4 {[%clk 0:01:09]}  Bc4 {[%clk 0:00:27]} 31. Qa1 {[%clk 0:01:08]}  Nxd5 {[%clk 0:00:20]} 32. Na7 {[%clk 0:00:42]}  Rcd8 {[%clk 0:00:12]} 33. Bxg7 {[%clk 0:00:38]}  Qxa7 {[%clk 0:00:10]} 34. Bxd5 {[%clk 0:00:25]}  Bxd5 {[%clk 0:00:03]} 35. Rxd5 {[%clk 0:00:24]}  Bxg3 {[%clk 0:00:03]} 36. Bd4 {[%clk 0:00:23]}  Bxf2+ {[%clk 0:00:02]} 37. Kxf2 {[%clk 0:00:21]}  Qe7 {[%clk 0:00:01]} 38. Rg1+ {[%clk 0:00:21]} 1-0


[Site "https://www.chess.com"]

[Event "Titled Tuesday Blitz June 21 Early 2022"]
[White "Tan, Zhongyi"]
[Black "Borisova, Ekaterina"]
[WhiteFideId "8603642"]
[BlackFideId "34124184"]
[WhiteElo "2510"]
[BlackElo "2039"]
[Result "0-1"]
[Round "08"]
[TimeControl "180+1"]
[Date "2022.06.21"]
[WhiteClock "0:00:20"]
[BlackClock "0:00:07"]

1. e4 {[%clk 0:03:00]}  c5 {[%clk 0:02:53]} 2. Nf3 {[%clk 0:03:00]}  Nc6 {[%clk 0:02:53]} 3. Bb5 {[%clk 0:02:59]}  e6 {[%clk 0:02:52]} 4. Bxc6 {[%clk 0:02:59]}  bxc6 {[%clk 0:02:51]} 5. b3 {[%clk 0:02:58]}  Ne7 {[%clk 0:02:50]} 6. Bb2 {[%clk 0:02:56]}  f6 {[%clk 0:02:50]} 7. e5 {[%clk 0:02:50]}  Ng6 {[%clk 0:02:42]} 8. Qe2 {[%clk 0:02:32]}  Be7 {[%clk 0:02:39]} 9. d3 {[%clk 0:02:30]}  O-O {[%clk 0:02:37]} 10. Nbd2 {[%clk 0:02:29]}  fxe5 {[%clk 0:02:33]} 11. Nxe5 {[%clk 0:02:28]}  Nxe5 {[%clk 0:02:24]} 12. Bxe5 {[%clk 0:02:27]}  d6 {[%clk 0:02:24]} 13. Bb2 {[%clk 0:02:16]}  e5 {[%clk 0:02:24]} 14. O-O-O {[%clk 0:02:15]}  a5 {[%clk 0:02:22]} 15. a4 {[%clk 0:02:14]}  Bg5 {[%clk 0:02:13]} 16. Kb1 {[%clk 0:02:11]}  Bxd2 {[%clk 0:02:13]} 17. Rxd2 {[%clk 0:02:11]}  Be6 {[%clk 0:02:01]} 18. Rf1 {[%clk 0:02:08]}  Bd5 {[%clk 0:01:57]} 19. f4 {[%clk 0:01:59]}  exf4 {[%clk 0:01:52]} 20. c4 {[%clk 0:01:55]}  Bf7 {[%clk 0:01:35]} 21. Rxf4 {[%clk 0:01:52]}  Qd7 {[%clk 0:01:22]} 22. d4 {[%clk 0:01:33]}  Bg6+ {[%clk 0:01:20]} 23. Ka2 {[%clk 0:01:31]}  Rxf4 {[%clk 0:01:20]} 24. dxc5 {[%clk 0:01:32]}  Qf5 {[%clk 0:01:16]} 25. cxd6 {[%clk 0:01:26]}  Rd8 {[%clk 0:01:02]} 26. Qe7 {[%clk 0:01:24]}  Rd7 {[%clk 0:00:57]} 27. Qe3 {[%clk 0:01:19]}  Re4 {[%clk 0:00:54]} 28. Qb6 {[%clk 0:01:17]}  c5 {[%clk 0:00:45]} 29. Qxa5 {[%clk 0:01:10]}  h6 {[%clk 0:00:44]} 30. Qb5 {[%clk 0:01:06]}  Kh7 {[%clk 0:00:43]} 31. Rd5 {[%clk 0:01:02]}  Qe6 {[%clk 0:00:38]} 32. Qxc5 {[%clk 0:00:59]}  Re2 {[%clk 0:00:38]} 33. Qd4 {[%clk 0:00:59]}  Rxg2 {[%clk 0:00:22]} 34. c5 {[%clk 0:00:56]}  Bf7 {[%clk 0:00:21]} 35. c6 {[%clk 0:00:54]}  Rxd6 {[%clk 0:00:22]} 36. Qd3+ {[%clk 0:00:49]}  Rg6 {[%clk 0:00:17]} 37. c7 {[%clk 0:00:42]}  Rxd5 {[%clk 0:00:15]} 38. Qc4 {[%clk 0:00:36]}  Ra5 {[%clk 0:00:14]} 39. c8=Q {[%clk 0:00:35]}  Rxa4+ {[%clk 0:00:13]} 40. Qxa4 {[%clk 0:00:29]}  Qxc8 {[%clk 0:00:13]} 41. Qd4 {[%clk 0:00:25]}  Qa6+ {[%clk 0:00:12]} 42. Kb1 {[%clk 0:00:25]}  Bxb3 {[%clk 0:00:11]} 43. h4 {[%clk 0:00:23]}  Qa2+ {[%clk 0:00:11]} 44. Kc1 {[%clk 0:00:22]}  Qa4 {[%clk 0:00:08]} 45. h5 {[%clk 0:00:20]}  Rc6+ {[%clk 0:00:07]} 0-1


[Site "https://www.chess.com"]

[Event "Titled Tuesday Blitz June 21 Early 2022"]
[White "Timofeev, Artyom"]
[Black "Navara, David"]
[WhiteFideId "4140419"]
[BlackFideId "309095"]
[WhiteElo "2578"]
[BlackElo "2686"]
[Result "0-1"]
[Round "08"]
[TimeControl "180+1"]
[Date "2022.06.21"]
[WhiteClock "0:00:06"]
[BlackClock "0:00:04"]

1. e4 {[%clk 0:03:00]}  c5 {[%clk 0:03:00]} 2. Nc3 {[%clk 0:02:59]}  d6 {[%clk 0:02:59]} 3. Nf3 {[%clk 0:02:57]}  Nf6 {[%clk 0:03:00]} 4. Bc4 {[%clk 0:02:57]}  Nc6 {[%clk 0:02:59]} 5. O-O {[%clk 0:02:56]}  Bg4 {[%clk 0:02:55]} 6. h3 {[%clk 0:02:56]}  Bxf3 {[%clk 0:02:54]} 7. Qxf3 {[%clk 0:02:56]}  g6 {[%clk 0:02:55]} 8. d3 {[%clk 0:02:55]}  Bg7 {[%clk 0:02:54]} 9. Be3 {[%clk 0:02:54]}  O-O {[%clk 0:02:54]} 10. Qe2 {[%clk 0:02:49]}  e6 {[%clk 0:02:49]} 11. Bb3 {[%clk 0:02:48]}  Nd4 {[%clk 0:02:48]} 12. Bxd4 {[%clk 0:02:46]}  cxd4 {[%clk 0:02:49]} 13. Nb1 {[%clk 0:02:46]}  Nd7 {[%clk 0:02:37]} 14. Nd2 {[%clk 0:02:46]}  Nc5 {[%clk 0:02:37]} 15. Bc4 {[%clk 0:02:46]}  b5 {[%clk 0:02:27]} 16. Bxb5 {[%clk 0:02:36]}  Rb8 {[%clk 0:02:27]} 17. Bc4 {[%clk 0:02:37]}  Rxb2 {[%clk 0:02:28]} 18. Nb3 {[%clk 0:02:34]}  Na4 {[%clk 0:02:14]} 19. Qf3 {[%clk 0:02:23]}  Nc3 {[%clk 0:02:11]} 20. Nc1 {[%clk 0:02:10]}  Rxc2 {[%clk 0:02:07]} 21. Bb3 {[%clk 0:02:11]}  Rb2 {[%clk 0:02:04]} 22. Re1 {[%clk 0:02:11]}  Qa5 {[%clk 0:02:01]} 23. Bc4 {[%clk 0:01:46]}  Qa3 {[%clk 0:01:32]} 24. Ne2 {[%clk 0:01:43]}  d5 {[%clk 0:01:18]} 25. exd5 {[%clk 0:01:42]}  exd5 {[%clk 0:01:19]} 26. Bxd5 {[%clk 0:01:31]}  Nxd5 {[%clk 0:01:20]} 27. Qxd5 {[%clk 0:01:31]}  Qxd3 {[%clk 0:01:19]} 28. Rad1 {[%clk 0:01:22]}  Qc2 {[%clk 0:01:19]} 29. Rc1 {[%clk 0:01:15]}  Qa4 {[%clk 0:01:07]} 30. Nf4 {[%clk 0:01:04]}  Qxa2 {[%clk 0:01:04]} 31. Qf3 {[%clk 0:01:02]}  Qb3 {[%clk 0:00:46]} 32. Qe4 {[%clk 0:00:59]}  a5 {[%clk 0:00:35]} 33. Nd3 {[%clk 0:00:47]}  Rc2 {[%clk 0:00:30]} 34. Rb1 {[%clk 0:00:46]}  Qc3 {[%clk 0:00:26]} 35. Ra1 {[%clk 0:00:36]}  Rd2 {[%clk 0:00:20]} 36. Red1 {[%clk 0:00:31]}  Rxd1+ {[%clk 0:00:19]} 37. Rxd1 {[%clk 0:00:31]}  a4 {[%clk 0:00:20]} 38. Rc1 {[%clk 0:00:25]}  Qb3 {[%clk 0:00:19]} 39. Nc5 {[%clk 0:00:24]}  Qb5 {[%clk 0:00:16]} 40. Qe7 {[%clk 0:00:16]}  a3 {[%clk 0:00:11]} 41. Nd7 {[%clk 0:00:16]}  Qb2 {[%clk 0:00:09]} 42. Rf1 {[%clk 0:00:11]}  a2 {[%clk 0:00:09]} 43. Nxf8 {[%clk 0:00:11]}  a1=Q {[%clk 0:00:07]} 44. Nd7 {[%clk 0:00:10]}  Qa8 {[%clk 0:00:05]} 45. Nf6+ {[%clk 0:00:09]}  Bxf6 {[%clk 0:00:05]} 46. Qxf6 {[%clk 0:00:10]}  Qe8 {[%clk 0:00:04]} 47. Qd6 {[%clk 0:00:10]}  Kg7 {[%clk 0:00:04]} 48. h4 {[%clk 0:00:10]}  Qe6 {[%clk 0:00:04]} 49. Qd8 {[%clk 0:00:09]}  Qf6 {[%clk 0:00:04]} 50. Qd5 {[%clk 0:00:09]}  h5 {[%clk 0:00:04]} 51. g3 {[%clk 0:00:09]}  Qf5 {[%clk 0:00:04]} 52. Qd6 {[%clk 0:00:09]}  d3 {[%clk 0:00:04]} 53. Kg2 {[%clk 0:00:07]}  Qe2 {[%clk 0:00:04]} 54. Qd8 {[%clk 0:00:06]}  Qff3+ {[%clk 0:00:04]} 55. Kg1 {[%clk 0:00:06]}  d2 {[%clk 0:00:04]} 56. Qd4+ {[%clk 0:00:06]}  Kh7 {[%clk 0:00:04]} 0-1


[Site "https://www.chess.com"]

[Event "Titled Tuesday Blitz June 21 Early 2022"]
[White "Tisaj, Domen"]
[Black "Yuan, Qingyu"]
[WhiteFideId "14628708"]
[BlackFideId "8609772"]
[WhiteElo "2326"]
[BlackElo "2359"]
[Result "1-0"]
[Round "08"]
[TimeControl "180+1"]
[Date "2022.06.21"]
[WhiteClock "0:00:14"]
[BlackClock "0:00:02"]

1. d4 {[%clk 0:03:00]}  d5 {[%clk 0:02:59]} 2. c4 {[%clk 0:03:01]}  e6 {[%clk 0:02:59]} 3. Nf3 {[%clk 0:03:00]}  Nf6 {[%clk 0:03:00]} 4. g3 {[%clk 0:03:01]}  dxc4 {[%clk 0:02:57]} 5. Bg2 {[%clk 0:03:01]}  c5 {[%clk 0:02:57]} 6. O-O {[%clk 0:02:58]}  Nc6 {[%clk 0:02:57]} 7. dxc5 {[%clk 0:02:58]}  Qxd1 {[%clk 0:02:57]} 8. Rxd1 {[%clk 0:02:58]}  Bxc5 {[%clk 0:02:58]} 9. Nbd2 {[%clk 0:02:58]}  c3 {[%clk 0:02:58]} 10. bxc3 {[%clk 0:02:59]}  O-O {[%clk 0:02:59]} 11. Nb3 {[%clk 0:03:00]}  Be7 {[%clk 0:02:59]} 12. Bg5 {[%clk 0:03:00]}  h6 {[%clk 0:02:43]} 13. Bf4 {[%clk 0:03:00]}  Nd5 {[%clk 0:02:31]} 14. Bd2 {[%clk 0:02:59]}  Bd7 {[%clk 0:02:19]} 15. c4 {[%clk 0:02:59]}  Nb6 {[%clk 0:02:14]} 16. c5 {[%clk 0:02:57]}  Na4 {[%clk 0:02:06]} 17. Rac1 {[%clk 0:02:36]}  Rfd8 {[%clk 0:02:04]} 18. Bf4 {[%clk 0:02:30]}  Be8 {[%clk 0:01:34]} 19. Bd6 {[%clk 0:02:29]}  Rac8 {[%clk 0:01:29]} 20. e4 {[%clk 0:02:14]}  f6 {[%clk 0:01:09]} 21. e5 {[%clk 0:02:13]}  Bh5 {[%clk 0:01:06]} 22. Re1 {[%clk 0:02:07]}  Kf7 {[%clk 0:01:00]} 23. Nfd4 {[%clk 0:01:54]}  Nxd4 {[%clk 0:00:51]} 24. Nxd4 {[%clk 0:01:54]}  Bxd6 {[%clk 0:00:47]} 25. cxd6 {[%clk 0:01:48]}  Rxc1 {[%clk 0:00:43]} 26. Rxc1 {[%clk 0:01:47]}  fxe5 {[%clk 0:00:44]} 27. Nb5 {[%clk 0:01:14]}  a6 {[%clk 0:00:42]} 28. Nc7 {[%clk 0:01:10]}  Rxd6 {[%clk 0:00:31]} 29. Bxb7 {[%clk 0:01:10]}  a5 {[%clk 0:00:27]} 30. Bc6 {[%clk 0:01:08]}  Nb2 {[%clk 0:00:20]} 31. Be8+ {[%clk 0:01:08]}  Ke7 {[%clk 0:00:15]} 32. Bxh5 {[%clk 0:01:08]}  Rd2 {[%clk 0:00:15]} 33. Bg6 {[%clk 0:01:01]}  Kd7 {[%clk 0:00:03]} 34. Nb5 {[%clk 0:00:54]}  Na4 {[%clk 0:00:02]} 35. Rc7+ {[%clk 0:00:44]}  Kd8 {[%clk 0:00:03]} 36. Ra7 {[%clk 0:00:35]}  Rxa2 {[%clk 0:00:02]} 37. Rxa5 {[%clk 0:00:35]}  Nc3 {[%clk 0:00:02]} 38. Rxa2 {[%clk 0:00:30]}  Nxa2 {[%clk 0:00:03]} 39. Na3 {[%clk 0:00:27]}  Ke7 {[%clk 0:00:03]} 40. Be4 {[%clk 0:00:23]}  Nc3 {[%clk 0:00:03]} 41. f3 {[%clk 0:00:22]}  Kf6 {[%clk 0:00:02]} 42. Kf2 {[%clk 0:00:22]}  Na4 {[%clk 0:00:02]} 43. Nc4 {[%clk 0:00:21]}  Nc5 {[%clk 0:00:02]} 44. Ke3 {[%clk 0:00:21]}  g5 {[%clk 0:00:03]} 45. Nb2 {[%clk 0:00:18]}  Nb3 {[%clk 0:00:03]} 46. Nd3 {[%clk 0:00:18]}  Na5 {[%clk 0:00:03]} 47. Nf2 {[%clk 0:00:18]}  Nc4+ {[%clk 0:00:03]} 48. Kd3 {[%clk 0:00:18]}  Nb2+ {[%clk 0:00:03]} 49. Kc2 {[%clk 0:00:18]}  Nc4 {[%clk 0:00:03]} 50. Kc3 {[%clk 0:00:19]}  Nd6 {[%clk 0:00:02]} 51. Ng4+ {[%clk 0:00:19]}  Kg7 {[%clk 0:00:02]} 52. Nxe5 {[%clk 0:00:19]}  Kf6 {[%clk 0:00:02]} 53. Nc4 {[%clk 0:00:19]}  Nf7 {[%clk 0:00:02]} 54. Kd3 {[%clk 0:00:19]}  h5 {[%clk 0:00:02]} 55. Kd4 {[%clk 0:00:18]}  Ke7 {[%clk 0:00:02]} 56. Ne5 {[%clk 0:00:18]}  Nd6 {[%clk 0:00:02]} 57. Bg6 {[%clk 0:00:14]}  h4 {[%clk 0:00:02]} 58. g4 {[%clk 0:00:12]}  Kf6 {[%clk 0:00:03]} 59. Bd3 {[%clk 0:00:12]}  Nc8 {[%clk 0:00:02]} 60. Nd7+ {[%clk 0:00:12]}  Ke7 {[%clk 0:00:02]} 61. Nc5 {[%clk 0:00:13]}  Kf6 {[%clk 0:00:03]} 62. Ne4+ {[%clk 0:00:13]}  Kg6 {[%clk 0:00:02]} 63. Nd6+ {[%clk 0:00:13]}  Kf6 {[%clk 0:00:02]} 64. Nxc8 {[%clk 0:00:14]} 1-0


[Site "https://www.chess.com"]

[Event "Titled Tuesday Blitz June 21 Early 2022"]
[White "Tologon tegin, Semetei"]
[Black "Skliarov, Viktor"]
[WhiteFideId "13800574"]
[BlackFideId "14106736"]
[WhiteElo "2174"]
[BlackElo "2229"]
[Result "1-0"]
[Round "08"]
[TimeControl "180+1"]
[Date "2022.06.21"]
[WhiteClock "0:01:15"]
[BlackClock "0:00:02"]

1. e4 {[%clk 0:03:00]}  c5 {[%clk 0:02:59]} 2. Nc3 {[%clk 0:03:00]}  Nc6 {[%clk 0:03:00]} 3. Bb5 {[%clk 0:02:59]}  Nd4 {[%clk 0:02:59]} 4. Nf3 {[%clk 0:02:59]}  g6 {[%clk 0:02:59]} 5. Nxd4 {[%clk 0:02:59]}  cxd4 {[%clk 0:02:59]} 6. Ne2 {[%clk 0:02:59]}  Bg7 {[%clk 0:02:54]} 7. O-O {[%clk 0:02:58]}  Nf6 {[%clk 0:02:34]} 8. d3 {[%clk 0:02:58]}  a6 {[%clk 0:02:34]} 9. Bc4 {[%clk 0:02:57]}  d5 {[%clk 0:02:35]} 10. exd5 {[%clk 0:02:56]}  Nxd5 {[%clk 0:02:36]} 11. Nf4 {[%clk 0:02:54]}  Nb6 {[%clk 0:02:24]} 12. Bb3 {[%clk 0:02:52]}  e5 {[%clk 0:02:23]} 13. Ne2 {[%clk 0:02:50]}  O-O {[%clk 0:02:18]} 14. Bd2 {[%clk 0:02:50]}  a5 {[%clk 0:02:08]} 15. a4 {[%clk 0:02:49]}  Kh8 {[%clk 0:01:49]} 16. f4 {[%clk 0:02:46]}  Nd5 {[%clk 0:00:57]} 17. fxe5 {[%clk 0:02:33]}  Bxe5 {[%clk 0:00:57]} 18. Bxd5 {[%clk 0:02:33]}  Qxd5 {[%clk 0:00:55]} 19. Bf4 {[%clk 0:02:33]}  Bg7 {[%clk 0:00:52]} 20. Qd2 {[%clk 0:02:30]}  b6 {[%clk 0:00:24]} 21. Bh6 {[%clk 0:02:28]}  Bb7 {[%clk 0:00:25]} 22. Bxg7+ {[%clk 0:02:27]}  Kxg7 {[%clk 0:00:25]} 23. Nf4 {[%clk 0:02:26]}  Qd6 {[%clk 0:00:26]} 24. Rae1 {[%clk 0:02:23]}  Rae8 {[%clk 0:00:25]} 25. Qf2 {[%clk 0:02:23]}  Kg8 {[%clk 0:00:08]} 26. Rxe8 {[%clk 0:02:19]}  Rxe8 {[%clk 0:00:08]} 27. Nh5 {[%clk 0:02:19]}  Re7 {[%clk 0:00:04]} 28. Nf6+ {[%clk 0:02:14]}  Kg7 {[%clk 0:00:04]} 29. Qh4 {[%clk 0:02:00]}  h5 {[%clk 0:00:04]} 30. Qg5 {[%clk 0:01:56]}  Qe5 {[%clk 0:00:02]} 31. Nxh5+ {[%clk 0:01:54]}  Kf8 {[%clk 0:00:03]} 32. Qh6+ {[%clk 0:01:49]}  Ke8 {[%clk 0:00:03]} 33. Nf6+ {[%clk 0:01:43]}  Kd8 {[%clk 0:00:03]} 34. Qf8+ {[%clk 0:01:35]}  Kc7 {[%clk 0:00:03]} 35. Ng8 {[%clk 0:01:17]}  Qe3+ {[%clk 0:00:03]} 36. Kh1 {[%clk 0:01:16]}  Bxg2+ {[%clk 0:00:03]} 37. Kxg2 {[%clk 0:01:16]}  Qe2+ {[%clk 0:00:04]} 38. Kg1 {[%clk 0:01:14]}  Qg4+ {[%clk 0:00:04]} 39. Kh1 {[%clk 0:01:15]}  Qe2 {[%clk 0:00:02]} 40. Qxe7+ {[%clk 0:01:14]}  Qxe7 {[%clk 0:00:02]} 41. Nxe7 {[%clk 0:01:15]} 1-0


[Site "https://www.chess.com"]